fUSD/lending_fUSD_20250617
["ID","MTS","AMOUNT","RATE_DAILY","PERIOD"]
[366298781,1750179055112,-213.914733,0.00016438,2]
[366298783,1750179055121,-669.97,0.00016438,2]
[366298785,1750179055130,-490.0,0.00016438,2]
[366298787,1750179055140,-490.0,0.00016438,2]
[366298789,1750179055150,-704.73,0.00016438,2]
[366298791,1750179055159,-3562.48,0.00016438,2]
[366298793,1750179055168,-491.51568208,0.00016438,2]
[366298795,1750179055177,-490.0,0.00016438,2]
[366298797,1750179055186,-490.0,0.00016438,2]
[366298799,1750179055198,-448.745207,0.00016438,2]
[366298801,1750179055207,-485.11322886,0.00016438,2]
[366298803,1750179055216,-448.745207,0.00016438,2]
[366298805,1750179055226,-448.745207,0.00016438,2]
[366298807,1750179055235,-490.0,0.00016438,2]
[366298809,1750179055245,-490.0,0.00016438,2]
[366298811,1750179055254,-490.0,0.00016438,2]
[366298813,1750179055263,-490.0,0.00016438,2]
[366298815,1750179055272,-490.0,0.00016438,2]
[366298817,1750179055282,-490.0,0.00016438,2]
[366298819,1750179055291,-490.0,0.00016438,2]
[366298821,1750179055300,-470.24451365,0.00016438,2]
[366298823,1750179055310,-1527.75,0.00016438,2]
[366298825,1750179055319,-561.98,0.00016438,2]
[366298827,1750179055328,-490.0,0.00016438,2]
[366298829,1750179055338,-490.0,0.00016438,2]
[366298831,1750179055347,-490.0,0.00016438,2]
[366298833,1750179055356,-996.48,0.00016438,2]
[366298835,1750179055366,-2338.68,0.00016438,2]
[366298837,1750179055375,-490.0,0.00016438,2]
[366298839,1750179055385,-832.85,0.00016438,2]
[366298842,1750179055395,-490.0,0.00016438,2]
[366298844,1750179055404,-490.0,0.00016438,2]
[366298846,1750179055414,-490.0,0.00016438,2]
[366298848,1750179055423,-1058.65,0.00016438,2]
[366298850,1750179055432,-490.0,0.00016438,2]
[366298852,1750179055444,-490.0,0.00016438,2]
[366298854,1750179055454,-490.0,0.00016438,2]
[366298855,1750179055463,-490.0,0.00016438,2]
[366298857,1750179055475,-490.0,0.00016438,2]
[366298860,1750179055485,-1696.09,0.00016438,2]
[366298862,1750179055496,-490.0,0.00016438,2]
[366298864,1750179055506,-1784.36,0.00016438,2]
[366298866,1750179055516,-490.0,0.00016438,2]
[366298867,1750179055525,-490.0,0.00016438,2]
[366298870,1750179055537,-490.0,0.00016438,2]
[366298872,1750179055546,-490.0,0.00016438,2]
[366298874,1750179055557,-490.0,0.00016438,2]
[366298876,1750179055567,-490.0,0.00016438,2]
[366298878,1750179055577,-490.0,0.00016438,2]
[366298880,1750179055586,-490.0,0.00016438,2]
[366298882,1750179055596,-2665.98,0.00016438,2]
[366298884,1750179055605,-490.0,0.00016438,2]
[366298886,1750179055615,-303.96687288,0.00016438,2]
[366298888,1750179055625,-490.0,0.00016438,2]
[366298890,1750179055636,-2519.09,0.00016438,2]
[366298892,1750179055646,-1655.08,0.00016438,2]
[366298894,1750179055657,-490.0,0.00016438,2]
[366298896,1750179055667,-4264.82,0.00016438,2]
[366298898,1750179055679,-490.0,0.00016438,2]
[366298901,1750179055689,-695.16,0.00016438,2]
[366298903,1750179055702,-490.0,0.00016438,2]
[366298905,1750179055712,-490.0,0.00016438,2]
[366298907,1750179055722,-1590.78,0.00016438,2]
[366298909,1750179055732,-1027.36,0.00016438,2]
[366298911,1750179055742,-490.0,0.00016438,2]
[366298912,1750179055752,-490.0,0.00016438,2]
[366298914,1750179055762,-490.0,0.00016438,2]
[366298916,1750179055774,-490.0,0.00016438,2]
[366298919,1750179055784,-490.0,0.00016438,2]
[366298921,1750179055795,-1727.59,0.00016438,2]
[366298923,1750179055805,-490.0,0.00016438,2]
[366298925,1750179055814,-490.0,0.00016438,2]
[366298927,1750179055824,-490.0,0.00016438,2]
[366298929,1750179055834,-490.0,0.00016438,2]
[366298931,1750179055845,-490.0,0.00016438,2]
[366298933,1750179055854,-490.0,0.00016438,2]
[366298935,1750179055864,-705.75,0.00016438,2]
[366298937,1750179055874,-1263.19,0.00016438,2]
[366298939,1750179055884,-490.0,0.00016438,2]
[366298941,1750179055893,-969.67,0.00016438,2]
[366298943,1750179055904,-490.0,0.00016438,2]
[366298945,1750179055914,-490.0,0.00016438,2]
[366298947,1750179055925,-490.0,0.00016438,2]
[366298949,1750179055935,-490.0,0.00016438,2]
[366298951,1750179055946,-490.0,0.00016438,2]
[366298953,1750179055955,-490.0,0.00016438,2]
[366298955,1750179055965,-1222.19,0.00016438,2]
[366298957,1750179055975,-1068.65,0.00016438,2]
[366298960,1750179055986,-490.0,0.00016438,2]
[366298962,1750179055997,-490.0,0.00016438,2]
[366298964,1750179056007,-1082.06,0.00016438,2]
[366298966,1750179056018,-622.03,0.00016438,2]
[366298968,1750179056027,-539.12,0.00016438,2]
[366298970,1750179056038,-490.0,0.00016438,2]
[366298972,1750179056047,-1237.16,0.00016438,2]
[366298974,1750179056056,-490.0,0.00016438,2]
[366298976,1750179056066,-860.53,0.00016438,2]
[366298978,1750179056075,-1268.17,0.00016438,2]
[366298980,1750179056086,-490.0,0.00016438,2]
[366298982,1750179056096,-490.0,0.00016438,2]
[366298984,1750179056106,-490.0,0.00016438,2]
[366298986,1750179056115,-490.0,0.00016438,2]
[366298988,1750179056125,-626.84,0.00016438,2]
[366298990,1750179056135,-490.0,0.00016438,2]
[366298992,1750179056148,-490.0,0.00016438,2]
[366298994,1750179056158,-4142.56,0.00016438,2]
[366298997,1750179056167,-490.0,0.00016438,2]
[366298999,1750179056177,-490.0,0.00016438,2]
[366299001,1750179056187,-151.0,0.00016438,2]
[366299003,1750179056199,-546.15,0.00016438,2]
[366299005,1750179056209,-151.0,0.00016438,2]
[366299007,1750179056218,-490.0,0.00016438,2]
[366299009,1750179056228,-490.0,0.00016438,2]
[366299011,1750179056238,-5086.97,0.00016438,2]
[366299013,1750179056247,-500.0,0.00016438,2]
[366299015,1750179056258,-150.0,0.00016438,2]
[366299017,1750179056267,-5094.54904667,0.00016446,2]
[366299019,1750179056278,-201.605865,0.00016448,2]
[366299021,1750179056288,-201.605865,0.00016448,2]
[366299023,1750179056298,-151.0,0.00016448,2]
[366299025,1750179056308,-871.27933146,0.00016452,2]
[366299027,1750179056318,-378.33254744,0.00016452,2]
[366299029,1750179056327,-7246.80834628,0.00016455,2]
[366299031,1750179056337,-393.29,0.00016462,2]
[366299033,1750179056346,-188.62,0.00016462,2]
[366299035,1750179056358,-300.39,0.00016462,2]
[366299037,1750179056368,-150.0,0.00016462,2]
[366299039,1750179056378,-150.0,0.00016462,2]
[366299042,1750179056388,-150.0,0.00016462,2]
[366299044,1750179056398,-5094.54904667,0.00016465,2]
[366299046,1750179056408,-500.0,0.00016473,2]
[366299048,1750179056419,-170.58840193,0.00016473,2]
[366299050,1750179056429,-500.0,0.00016473,2]
[366299052,1750179056440,-500.0,0.00016473,2]
[366299054,1750179056450,-183.4260175,0.00016473,2]
[366299056,1750179056460,-500.0,0.00016473,2]
[366299058,1750179056472,-500.0,0.00016473,2]
[366299060,1750179056482,-500.0,0.00016473,2]
[366299062,1750179056494,-500.0,0.00016473,2]
[366299064,1750179056504,-299.48067091,0.00016473,2]
[366299066,1750179056514,-509.10561264,0.00016473,2]
[366299067,1750179056523,-500.0,0.00016473,2]
[366299069,1750179056534,-505.67646133,0.00016473,2]
[366299071,1750179056544,-341.31091834,0.00016473,2]
[366299073,1750179056555,-500.0,0.00016473,2]
[366299075,1750179056565,-500.0,0.00016473,2]
[366299077,1750179056575,-500.0,0.00016473,2]
[366299079,1750179056588,-500.0,0.00016473,2]
[366299081,1750179056598,-972.48103,0.00016473,2]
[366299083,1750179056608,-972.48103,0.00016473,2]
[366299085,1750179056619,-151.0,0.00016473,2]
[366299087,1750179056629,-156.359629,0.00016473,2]
[366299089,1750179056640,-192.784752,0.00016473,2]
[366299091,1750179056650,-192.784752,0.00016473,2]
[366299093,1750179056661,-151.0,0.00016473,2]
[366299095,1750179056671,-879.769386,0.00016473,2]
[366299097,1750179056681,-879.769386,0.00016473,2]
[366299099,1750179056693,-151.0,0.00016473,2]
[366299101,1750179056706,-151.0,0.00016473,2]
[366299103,1750179056716,-151.0,0.00016473,2]
[366299105,1750179056726,-151.0,0.00016473,2]
[366299107,1750179056737,-1354.860897,0.00016473,2]
[366299109,1750179056747,-1354.860897,0.00016473,2]
[366299110,1750179056757,-7246.80834628,0.00016479,2]
[366299111,1750179056768,-5094.54904667,0.00016483,2]
[366299112,1750179056778,-151.0,0.00016493,2]
[366299113,1750179056788,-151.0,0.00016493,2]
[366299114,1750179056798,-151.0,0.00016493,2]
[366299115,1750179056808,-151.0,0.00016493,2]
[366299116,1750179056819,-151.0,0.00016493,2]
[366299117,1750179056829,-1198.0,0.00016493,2]
[366299118,1750179056839,-151.0,0.00016493,2]
[366299119,1750179056851,-1198.0,0.00016493,2]
[366299120,1750179056861,-151.0,0.00016493,2]
[366299121,1750179056871,-1198.0,0.00016493,2]
[366299122,1750179056883,-151.0,0.00016493,2]
[366299123,1750179056894,-1198.0,0.00016493,2]
[366299124,1750179056903,-151.0,0.00016493,2]
[366299125,1750179056915,-1198.0,0.00016493,2]
[366299126,1750179056925,-151.0,0.00016493,2]
[366299127,1750179056935,-1198.0,0.00016493,2]
[366299128,1750179056946,-151.0,0.00016493,2]
[366299129,1750179056956,-1198.0,0.00016493,2]
[366299130,1750179056966,-151.0,0.00016493,2]
[366299131,1750179056976,-1198.0,0.00016493,2]
[366299132,1750179056985,-151.0,0.00016493,2]
[366299133,1750179056995,-1198.0,0.00016493,2]
[366299134,1750179057005,-151.0,0.00016493,2]
[366299135,1750179057015,-1198.0,0.00016493,2]
[366299136,1750179057025,-151.0,0.00016493,2]
[366299137,1750179057034,-154.0,0.00016493,2]
[366299138,1750179057045,-154.0,0.00016493,2]
[366299139,1750179057055,-154.0,0.00016493,2]
[366299140,1750179057068,-154.0,0.00016493,2]
[366299141,1750179057079,-154.0,0.00016493,2]
[366299142,1750179057088,-151.0,0.00016496,2]
[366299143,1750179057099,-151.0,0.00016496,2]
[366299144,1750179057110,-185.086926,0.00016496,2]
[366299145,1750179057121,-185.086926,0.00016496,2]
[366299146,1750179057131,-8077.056091,0.00016496,2]
[366299147,1750179057141,-8077.056091,0.00016496,2]
[366299148,1750179057151,-151.0,0.00016496,2]
[366299149,1750179057162,-353.700401,0.00016496,2]
[366299150,1750179057173,-151.0,0.00016496,2]
[366299151,1750179057183,-353.700401,0.00016496,2]
[366299152,1750179057194,-151.0,0.00016496,2]
[366299153,1750179057205,-151.0,0.00016496,2]
[366299154,1750179057216,-321.898445,0.00016496,2]
[366299155,1750179057227,-333.277908,0.00016496,2]
[366299156,1750179057237,-321.898445,0.00016496,2]
[366299157,1750179057248,-333.277908,0.00016496,2]
[366299158,1750179057258,-1870.077137,0.00016496,2]
[366299159,1750179057268,-1870.077137,0.00016496,2]
[366299160,1750179057279,-151.0,0.00016496,2]
[366299161,1750179057289,-152.901366,0.00016496,2]
[366299162,1750179057300,-152.901366,0.00016496,2]
[366299163,1750179057315,-448.745207,0.00016496,2]
[366299164,1750179057326,-448.745207,0.00016496,2]
[366299165,1750179057337,-200.0,0.00016496,2]
[366299166,1750179057348,-200.0,0.00016496,2]
[366299167,1750179057359,-200.0,0.00016496,2]
[366299168,1750179057369,-200.0,0.00016496,2]
[366299169,1750179057380,-200.0,0.00016496,2]
[366299170,1750179057390,-200.0,0.00016496,2]
[366299171,1750179057401,-200.0,0.00016496,2]
[366299172,1750179057410,-400.0,0.00016496,2]
[366299173,1750179057420,-400.0,0.00016496,2]
[366299174,1750179057430,-400.0,0.00016496,2]
[366299175,1750179057443,-400.0,0.00016496,2]
[366299176,1750179057454,-400.0,0.00016496,2]
[366299177,1750179057463,-400.0,0.00016496,2]
[366299178,1750179057474,-400.0,0.00016496,2]
[366299179,1750179057485,-400.0,0.00016496,2]
[366299180,1750179057497,-400.0,0.00016496,2]
[366299181,1750179057507,-400.0,0.00016496,2]
[366299182,1750179057517,-400.0,0.00016496,2]
[366299183,1750179057528,-400.0,0.00016496,2]
[366299184,1750179057539,-400.0,0.00016496,2]
[366299185,1750179057549,-400.0,0.00016496,2]
[366299186,1750179057560,-403.0,0.00016496,2]
[366299187,1750179057571,-200.0,0.00016496,2]
[366299188,1750179057582,-200.0,0.00016496,2]
[366299189,1750179057592,-200.0,0.00016496,2]
[366299190,1750179057601,-200.0,0.00016496,2]
[366299191,1750179057611,-200.0,0.00016496,2]
[366299192,1750179057621,-400.0,0.00016496,2]
[366299193,1750179057632,-200.0,0.00016496,2]
[366299194,1750179057642,-586.0,0.00016496,2]
[366299195,1750179057652,-200.0,0.00016496,2]
[366299196,1750179057662,-200.0,0.00016496,2]
[366299197,1750179057673,-200.0,0.00016496,2]
[366299198,1750179057683,-200.0,0.00016496,2]
[366299199,1750179057695,-200.0,0.00016496,2]
[366299200,1750179057705,-200.0,0.00016496,2]
[366299201,1750179057715,-200.0,0.00016496,2]
[366299202,1750179057726,-200.0,0.00016496,2]
[366299203,1750179057735,-200.0,0.00016496,2]
[366299204,1750179057746,-200.0,0.00016496,2]
[366299205,1750179057756,-200.0,0.00016496,2]
[366299206,1750179057767,-200.0,0.00016496,2]
[366299207,1750179057777,-400.0,0.00016496,2]
[366299208,1750179057787,-400.0,0.00016496,2]
[366299209,1750179057798,-400.0,0.00016496,2]
[366299210,1750179057808,-400.0,0.00016496,2]
[366299211,1750179057818,-400.0,0.00016496,2]
[366299212,1750179057829,-400.0,0.00016496,2]
[366299213,1750179057839,-400.0,0.00016496,2]
[366299214,1750179057849,-200.0,0.00016496,2]
[366299215,1750179057860,-400.0,0.00016496,2]
[366299216,1750179058177,-400.0,0.00016496,2]
[366299217,1750179058188,-400.0,0.00016496,2]
[366299218,1750179058200,-400.0,0.00016496,2]
[366299219,1750179058210,-400.0,0.00016496,2]
[366299220,1750179058221,-400.0,0.00016496,2]
[366299221,1750179058230,-400.0,0.00016496,2]
[366299222,1750179058244,-400.0,0.00016496,2]
[366299223,1750179058255,-200.0,0.00016496,2]
[366299224,1750179058265,-200.0,0.00016496,2]
[366299225,1750179058275,-154.0,0.00016496,2]
[366299226,1750179058286,-447.0,0.00016496,2]
[366299227,1750179058296,-400.0,0.00016496,2]
[366299228,1750179058306,-400.0,0.00016496,2]
[366299229,1750179058316,-400.0,0.00016496,2]
[366299230,1750179058325,-400.0,0.00016496,2]
[366299231,1750179058335,-771.7,0.000165,2]
[366299232,1750179058345,-1000.0,0.000165,2]
[366299233,1750179058354,-151.314422,0.00016502,2]
[366299234,1750179058364,-151.0,0.00016502,2]
[366299235,1750179058375,-187.440199,0.00016502,2]
[366299236,1750179058387,-187.440199,0.00016502,2]
[366299237,1750179058398,-151.0,0.00016502,2]
[366299238,1750179058408,-151.0,0.00016502,2]
[366299239,1750179058419,-151.0,0.00016502,2]
[366299240,1750179058429,-232.176613,0.00016502,2]
[366299241,1750179058439,-232.176613,0.00016502,2]
[366299242,1750179058452,-5094.54904667,0.00016502,2]
[366299243,1750179058463,-7246.80834628,0.00016502,2]
[366299244,1750179058474,-833.87704394,0.00016512,2]
[366299245,1750179058488,-199.88539056,0.00016542,2]
[366299246,1750179058500,-150.0,0.00016548,2]
[366299247,1750179058510,-300.0,0.00016548,2]
[366299248,1750179058521,-455.27,0.00016548,2]
[366299249,1750179058531,-170.85,0.00016548,2]
[366299250,1750179058542,-455.27,0.00016548,2]
[366299251,1750179058552,-170.85,0.00016548,2]
[366299252,1750179058562,-378.33254744,0.00016571,2]
[366299253,1750179058572,-151.0,0.00016575,2]
[366299254,1750179058583,-151.0,0.00016575,2]
[366299255,1750179058593,-500.0,0.00016575,2]
[366299256,1750179058603,-500.0,0.00016575,2]
[366299257,1750179058614,-200.0,0.00016575,2]
[366299258,1750179058624,-150.0,0.00016575,2]
[366299259,1750179058635,-150.0,0.00016575,2]
[366299260,1750179058646,-150.0,0.00016575,2]
[366299261,1750179058656,-150.0,0.00016575,2]
[366299262,1750179058667,-150.0,0.00016575,2]
[366299263,1750179058677,-150.0,0.00016575,2]
[366299264,1750179058688,-150.0,0.00016575,2]
[366299265,1750179058706,-150.0,0.00016575,2]
[366299266,1750179058718,-150.87184903,0.00016575,2]
[366299267,1750179058728,-150.0,0.00016575,2]
[366299268,1750179058740,-150.0,0.00016575,2]
[366299269,1750179058750,-150.0,0.00016575,2]
[366299270,1750179058761,-150.0,0.00016575,2]
[366299271,1750179058771,-151.36002792,0.00016575,2]
[366299272,1750179058782,-500.0,0.00016575,2]
[366299273,1750179058794,-500.0,0.00016575,2]
[366299274,1750179058804,-150.0,0.00016575,2]
[366299275,1750179058814,-150.0,0.00016575,2]
[366299276,1750179058824,-259.04177548,0.00016575,2]
[366299277,1750179058834,-150.0,0.00016575,2]
[366299278,1750179058844,-500.0,0.00016575,2]
[366299279,1750179058854,-181.55931939,0.00016575,2]
[366299280,1750179058865,-150.0,0.00016575,2]
[366299281,1750179058875,-150.0,0.00016575,2]
[366299282,1750179058885,-500.0,0.00016575,2]
[366299283,1750179058896,-237.0,0.00016575,2]
[366299284,1750179058906,-871.27933146,0.0001659,2]
[366299285,1750179058916,-232.539758,0.00016591,2]
[366299286,1750179058925,-232.539758,0.00016591,2]
[366299287,1750179058935,-151.0,0.00016591,2]
[366299288,1750179058949,-500.0,0.00016595,2]
[366299289,1750179058959,-500.0,0.00016595,2]
[366299290,1750179058970,-500.0,0.00016595,2]
[366299291,1750179058979,-500.0,0.00016595,2]
[366299292,1750179058990,-523.64320111,0.00016595,2]
[366299293,1750179059000,-640.67170139,0.00016595,2]
[366299294,1750179059010,-151.0,0.00016596,2]
[366299295,1750179059020,-151.0,0.00016596,2]
[366299296,1750179059031,-151.0,0.00016596,2]
[366299297,1750179059041,-972.48103,0.00016596,2]
[366299298,1750179059052,-151.0,0.00016596,2]
[366299299,1750179059062,-972.48103,0.00016596,2]
[366299300,1750179059085,-151.0,0.00016596,2]
[366299301,1750179059095,-151.0,0.00016596,2]
[366299302,1750179059107,-192.784752,0.00016596,2]
[366299303,1750179059118,-192.784752,0.00016596,2]
[366299304,1750179059129,-151.0,0.00016596,2]
[366299305,1750179059140,-879.769386,0.00016596,2]
[366299306,1750179059150,-879.769386,0.00016596,2]
[366299307,1750179059161,-151.0,0.00016596,2]
[366299308,1750179059171,-151.0,0.00016596,2]
[366299309,1750179059181,-151.0,0.00016596,2]
[366299310,1750179059196,-155.31652,0.00016596,2]
[366299311,1750179059207,-153.856495,0.00016596,2]
[366299312,1750179059217,-153.856495,0.00016596,2]
[366299313,1750179059228,-1354.860897,0.00016596,2]
[366299314,1750179059239,-1354.860897,0.00016596,2]
[366299315,1750179059250,-500.0,0.00016601,2]
[366299316,1750179059260,-500.0,0.00016601,2]
[366299317,1750179059271,-500.0,0.00016601,2]
[366299318,1750179059281,-500.0,0.00016601,2]
[366299319,1750179059291,-151.0,0.00016601,2]
[366299320,1750179059302,-151.0,0.00016601,2]
[366299321,1750179059312,-151.0,0.00016601,2]
[366299322,1750179059322,-151.0,0.00016601,2]
[366299323,1750179059332,-4469.21,0.00016601,2]
[366299324,1750179059342,-4469.21,0.00016601,2]
[366299325,1750179059352,-4469.21,0.00016601,2]
[366299326,1750179059362,-4469.21,0.00016601,2]
[366299327,1750179059372,-4469.21,0.00016601,2]
[366299328,1750179059383,-672.91796395,0.00016601,2]
[366299329,1750179059394,-300.0,0.00016601,2]
[366299330,1750179059404,-300.0,0.00016601,2]
[366299331,1750179059415,-300.0,0.00016601,2]
[366299332,1750179059425,-666.0,0.00016601,2]
[366299333,1750179059436,-300.0,0.00016601,2]
[366299334,1750179059450,-151.0,0.00016602,2]
[366299335,1750179059460,-151.0,0.00016602,2]
[366299336,1750179059470,-151.246169,0.00016602,2]
[366299337,1750179059481,-151.0,0.00016602,2]
[366299338,1750179059493,-151.0,0.00016602,2]
[366299339,1750179059511,-165.700937,0.00016602,2]
[366299340,1750179059522,-165.700937,0.00016602,2]
[366299341,1750179059534,-165.700937,0.00016602,2]
[366299342,1750179059546,-165.700937,0.00016602,2]
[366299343,1750179059557,-151.0,0.00016602,2]
[366299344,1750179059568,-151.0,0.00016602,2]
[366299345,1750179059580,-151.0,0.00016602,2]
[366299346,1750179059591,-207.69185,0.00016602,2]
[366299347,1750179059602,-347.821451,0.00016602,2]
[366299348,1750179059612,-347.821451,0.00016602,2]
[366299349,1750179059624,-151.0,0.00016602,2]
[366299350,1750179059634,-151.0,0.00016602,2]
[366299351,1750179059645,-151.0,0.00016602,2]
[366299352,1750179059655,-151.0,0.00016602,2]
[366299353,1750179059666,-151.0,0.00016602,2]
[366299354,1750179059678,-151.0,0.00016602,2]
[366299355,1750179059689,-151.0,0.00016602,2]
[366299356,1750179059703,-151.0,0.00016602,2]
[366299357,1750179059715,-151.0,0.00016602,2]
[366299358,1750179059726,-151.0,0.00016602,2]
[366299359,1750179059737,-151.0,0.00016602,2]
[366299360,1750179059748,-151.0,0.00016602,2]
[366299361,1750179059760,-151.0,0.00016602,2]
[366299362,1750179059771,-648.949849,0.00016602,2]
[366299363,1750179059782,-648.949849,0.00016602,2]
[366299364,1750179059793,-648.949849,0.00016602,2]
[366299365,1750179059804,-648.949849,0.00016602,2]
[366299366,1750179059814,-151.0,0.00016602,2]
[366299367,1750179059825,-151.0,0.00016602,2]
[366299368,1750179059836,-151.0,0.00016602,2]
[366299369,1750179059846,-151.0,0.00016602,2]
[366299370,1750179059857,-151.0,0.00016602,2]
[366299371,1750179059867,-151.0,0.00016602,2]
[366299372,1750179059877,-201.605865,0.00016602,2]
[366299373,1750179059888,-201.605865,0.00016602,2]
[366299374,1750179059898,-201.605865,0.00016602,2]
[366299375,1750179059909,-201.605865,0.00016602,2]
[366299376,1750179059919,-151.0,0.00016602,2]
[366299377,1750179059930,-187.440199,0.00016602,2]
[366299378,1750179059947,-187.440199,0.00016602,2]
[366299379,1750179059958,-187.440199,0.00016602,2]
[366299380,1750179059969,-187.440199,0.00016602,2]
[366299381,1750179059980,-2385.084473,0.00016602,2]
[366299382,1750179059991,-151.0,0.00016602,2]
[366299383,1750179060002,-151.0,0.00016602,2]
[366299384,1750179060014,-151.0,0.00016602,2]
[366299385,1750179060026,-300.789232,0.00016602,2]
[366299386,1750179060037,-151.0,0.00016602,2]
[366299387,1750179060048,-151.0,0.00016602,2]
[366299388,1750179060059,-2643.996566,0.00016602,2]
[366299389,1750179060071,-232.176613,0.00016602,2]
[366299390,1750179060082,-232.176613,0.00016602,2]
[366299391,1750179060093,-232.176613,0.00016602,2]
[366299392,1750179060104,-232.176613,0.00016602,2]
[366299393,1750179060115,-151.0,0.00016602,2]
[366299394,1750179060125,-151.0,0.00016602,2]
[366299395,1750179060136,-151.0,0.00016602,2]
[366299396,1750179060147,-151.0,0.00016602,2]
[366299397,1750179060157,-151.0,0.00016602,2]
[366299398,1750179060168,-151.0,0.00016602,2]
[366299399,1750179060179,-151.0,0.00016602,2]
[366299400,1750179060189,-151.0,0.00016602,2]
[366299401,1750179060202,-151.0,0.00016602,2]
[366299402,1750179060217,-151.0,0.00016602,2]
[366299403,1750179060228,-151.0,0.00016602,2]
[366299404,1750179060239,-151.0,0.00016602,2]
[366299405,1750179060250,-1214.664701,0.00016602,2]
[366299406,1750179060261,-151.0,0.00016602,2]
[366299407,1750179060271,-151.0,0.00016602,2]
[366299408,1750179060283,-151.0,0.00016602,2]
[366299409,1750179060293,-151.0,0.00016602,2]
[366299410,1750179060304,-151.0,0.00016602,2]
[366299411,1750179060315,-151.0,0.00016602,2]
[366299412,1750179060325,-226.066407,0.00016602,2]
[366299413,1750179060336,-226.066407,0.00016602,2]
[366299414,1750179060346,-388.877299,0.00016602,2]
[366299415,1750179060356,-388.877299,0.00016602,2]
[366299416,1750179060366,-151.0,0.00016602,2]
[366299417,1750179060377,-151.0,0.00016602,2]
[366299418,1750179060387,-151.0,0.00016602,2]
[366299419,1750179060398,-151.0,0.00016602,2]
[366299420,1750179060409,-151.0,0.00016602,2]
[366299421,1750179060419,-261.257853,0.00016602,2]
[366299422,1750179060430,-261.257853,0.00016602,2]
[366299423,1750179060440,-199.783054,0.00016602,2]
[366299424,1750179060452,-199.783054,0.00016602,2]
[366299425,1750179060463,-151.0,0.00016602,2]
[366299426,1750179060473,-151.0,0.00016602,2]
[366299427,1750179060484,-151.0,0.00016602,2]
[366299428,1750179060495,-203.172395,0.00016602,2]
[366299429,1750179060506,-316.022161,0.00016602,2]
[366299430,1750179060516,-181.941982,0.00016602,2]
[366299431,1750179060526,-316.022161,0.00016602,2]
[366299432,1750179060537,-162.553686,0.00016602,2]
[366299433,1750179060547,-162.553686,0.00016602,2]
[366299434,1750179060557,-242.579234,0.00016602,2]
[366299435,1750179060567,-242.579234,0.00016602,2]
[366299436,1750179060578,-242.579234,0.00016602,2]
[366299437,1750179060589,-242.579234,0.00016602,2]
[366299438,1750179060599,-151.0,0.00016602,2]
[366299439,1750179060609,-151.0,0.00016602,2]
[366299440,1750179060620,-151.0,0.00016602,2]
[366299441,1750179060631,-151.0,0.00016602,2]
[366299442,1750179060641,-151.0,0.00016602,2]
[366299443,1750179060651,-151.0,0.00016602,2]
[366299444,1750179060662,-151.0,0.00016602,2]
[366299445,1750179060672,-151.0,0.00016602,2]
[366299446,1750179060682,-182.769773,0.00016602,2]